[Event "1st Welsh Masters 2019"]
[Site "Bridgend"]
[Date "2019.08.28"]
[Round "5.4"]
[White "Kett, Tim"]
[Black "James, Dai"]
[Result "1-0"]
[ECO "D55"]
[WhiteElo "2245"]
[BlackElo "1858"]
[Annotator "NA"]
[PlyCount "55"]
[EventDate "2019.08.26"]
[EventType "tourn"]
[EventCountry "WLS"]
[SourceTitle "playchess.com"]
[Source "ChessBase"]
[SourceQuality "1"]
[TimeControl "5400+30"]

{[%evp 12,48,5,-8,5,18,12,0,46,25,32767,32767,32767,0,27,16,20,32767,32767,32767,32767,32767,32767,32767,32767,32767,32767,32767,32767,32767,32767,214,231,232,270,292,287,291,274]} 1. d4 {[%emt 0:00:00]} e6 {[%emt 0:01:08]} 2. Nf3 {[%emt 0:01:40]} Nf6 {[%emt 0:01:55]} 3. Bg5 {[%emt 0:00:40]} c5 {[%emt 0:03:02]} 4. e3 {[%emt 0:00:23]} d5 {[%emt 0:08:52]} 5. Bd3 {[%emt 0:01:52]} Be7 {[%emt 0:00:36]} 6. O-O {[%emt 0:00:19]} O-O {[%emt 0:03:26]} 7. c4 {[%emt 0:11:55]} Nbd7 {[%emt 0:07:23]} 8. Nc3 {[%emt 0:00:30]} b6 {[%emt 0:00:49]} 9. cxd5 {[%emt 0:04:48]} exd5 {[%emt 0:04:23]} 10. Rc1 {[%emt 0:05:11]} Bb7 {[%emt 0:01:26]} 11. dxc5 {[%emt 0:02:18]} bxc5 {[%emt 0:06:08]} 12. Qe2 {[%emt 0:09:20]} Ne4 {[%emt 0:10:09] D55: Queen's Gambit Declined: 4 Bg5 Be7: Lines without ...h6 and 6...h6 7 Bxf6} 13. Bxe7 {[%emt 0:03:22]} Qxe7 {[%emt 0:02:15]} 14. Ba6 {[%emt 0:08:23]} Ne5 $146 {[%emt 0:09:59]} ({Predecessor:} 14... Ndf6 15. Bxb7 Qxb7 16. Na4 Qb4 17. Qc2 Rfc8 18. a3 Qb7 19. Rfd1 Rab8 20. Nd2 Nxd2 21. Qxd2 c4 22. Qc2 h6 {0-1 (59) Radosevic,N (2240)-Ostojic,N (2445) Belgrade 1993}) 15. Bxb7 {[%emt 0:05:14]} Nxf3+ {[%emt 0:02:06]} 16. gxf3 {[%emt 0:00:26]} Nxc3 {[%emt 0:02:42]} 17. Rxc3 {[%emt 0:00:15]} Qxb7 {[%emt 0:00:02]} 18. Rxc5 {[%emt 0:00:12]} Rad8 {[%emt 0:01:50]} 19. Rd1 {[%emt 0:02:48]} Rfe8 {[%emt 0:01:37]} 20. Qb5 {[%emt 0:01:53]} Qa8 {[%emt 0:02:43]} 21. Rcxd5 {[%emt 0:01:37]} h6 {[%emt 0:04:05]} 22. b4 {[%emt 0:11:14]} Qc8 {[%emt 0:06:24]} 23. Rxd8 {[%emt 0:05:12]} Rxd8 {[%emt 0:00:15]} 24. Rxd8+ {[%emt 0:00:08]} Qxd8 $18 {[%emt 0:00:05]} 25. a4 {[%emt 0:00:33]} g5 {[%emt 0:04:02]} 26. Qc6 {[%emt 0:02:39]} g4 {[%emt 0:01:15]} 27. Kg2 {[%emt 0:05:58]} Qh4 {[%emt 0:06:01]} 28. Qc8+ {[%emt 0:00:21]} 1-0

[Event "1st Welsh Masters 2019"]
[Site "Bridgend"]
[Date "2019.08.28"]
[Round "5.5"]
[White "Willow, Jonah B"]
[Black "Toczek, Grzegorz"]
[Result "1-0"]
[ECO "A00"]
[WhiteElo "2326"]
[BlackElo "2246"]
[Annotator "ChessBase"]
[PlyCount "65"]
[EventDate "2019.08.26"]
[EventType "tourn"]
[EventCountry "WLS"]
[SourceTitle "playchess.com"]
[Source "ChessBase"]
[SourceQuality "1"]
[TimeControl "5400+30"]

1. e4 {[%emt 0:00:00]} d5 {[%emt 0:00:06]} 2. Nc3 {[%emt 0:00:00]} d4 {[%emt 0:00:15]} 3. Nce2 {[%emt 0:00:00]} e5 {[%emt 0:00:24]} 4. Ng3 {[%emt 0:00:00]} Be6 {[%emt 0:00:16]} 5. c3 {[%emt 0:00:08]} c5 {[%emt 0:00:33]} 6. Bb5+ {[%emt 0:00:11]} Nc6 {[%emt 0:01:41]} 7. Nf3 {[%emt 0:01:58]} Bd6 {[%emt 0:02:11]} 8. Qe2 {[%emt 0:04:19]} f6 {[%emt 0:03:17]} 9. O-O {[%emt 0:03:37]} Nge7 {[%emt 0:01:39]} 10. Bc4 {[%emt 0:05:03]} Qd7 {[%emt 0:00:11]} 11. Nh4 {[%emt 0:01:32]} g6 {[%emt 0:06:50]} 12. Bxe6 {[%emt 0:10:31]} Qxe6 {[%emt 0:02:00]} 13. d3 {[%emt 0:00:08]} O-O {[%emt 0:05:11]} 14. Bd2 {[%emt 0:03:21]} Rf7 {[%emt 0:07:29]} 15. c4 {[%emt 0:06:24]} Nc8 {[%emt 0:10:44]} 16. a3 {[%emt 0:08:54]} a5 {[%emt 0:01:03]} 17. Rae1 {[%emt 0:02:46]} Bf8 {[%emt 0:04:01]} 18. Nh1 {[%emt 0:04:22]} Ra6 {[%emt 0:05:44]} 19. g3 {[%emt 0:01:20]} Rb6 {[%emt 0:01:34]} 20. Bc1 {[%emt 0:00:41]} f5 {[%emt 0:05:50]} 21. exf5 {[%emt 0:06:31]} gxf5 {[%emt 0:00:02]} 22. f4 {[%emt 0:00:05]} e4 {[%emt 0:00:21]} 23. dxe4 {[%emt 0:00:50]} Qxe4 {[%emt 0:07:18]} 24. Qh5 {[%emt 0:14:07]} Qd3 {[%emt 0:00:15]} 25. Qg5+ {[%emt 0:00:04]} Kh8 {[%emt 0:02:20]} 26. Re8 {[%emt 0:01:19]} N6e7 {[%emt 0:01:50]} 27. Nf3 {[%emt 0:02:38]} Re6 {[%emt 0:08:33]} 28. Ne5 {[%emt 0:02:35]} Rxe5 {[%emt 0:00:06]} 29. fxe5 {[%emt 0:00:04]} Qxc4 {[%emt 0:00:07]} 30. Qh6 {[%emt 0:00:35]} Kg8 {[%emt 0:02:54]} 31. e6 {[%emt 0:00:12]} Rg7 {[%emt 0:00:21]} 32. Qf6 {[%emt 0:00:04]} Ng6 {[%emt 0:00:57]} 33. Rxc8 {[%emt 0:22:11]} 1-0

[Event "1st Welsh Masters 2019"]
[Site "Bridgend"]
[Date "2019.08.28"]
[Round "6.3"]
[White "Rudd, Jack"]
[Black "Kett, Tim"]
[Result "1-0"]
[ECO "E74"]
[WhiteElo "2281"]
[BlackElo "2245"]
[Annotator "NA"]
[PlyCount "170"]
[EventDate "2019.08.26"]
[EventType "tourn"]
[EventCountry "WLS"]
[SourceTitle "playchess.com"]
[Source "ChessBase"]
[SourceQuality "1"]
[TimeControl "5400+30"]

1. d4 {[%emt 0:00:00]} Nf6 {[%emt 0:00:00]} 2. c4 {[%emt 0:00:00]} g6 {[%emt 0:00:35]} 3. Nc3 {[%emt 0:00:00]} Bg7 {[%emt 0:00:10]} 4. e4 {[%emt 0:00:00]} d6 {[%emt 0:00:06]} 5. Be2 {[%emt 0:00:00]} O-O {[%emt 0:00:09]} 6. Bg5 {[%emt 0:00:00]} c5 {[%emt 0:02:41]} 7. d5 {[%emt 0:00:03]} h6 {[%emt 0:02:50]} 8. Bh4 {[%emt 0:00:23]} a6 {[%emt 0:05:30]} 9. a4 {[%emt 0:00:47]} Qa5 {[%emt 0:05:06]} 10. Qd2 {[%emt 0:00:20]} e6 {[%emt 0:01:34]} 11. Nf3 {[%emt 0:02:29]} exd5 {[%emt 0:03:04]} 12. exd5 {[%emt 0:00:19]} Bg4 {[%emt 0:00:48]} 13. O-O {[%emt 0:00:33]} Nbd7 {[%emt 0:00:20]} 14. Bg3 {[%emt 0:00:31]} Rfe8 {[%emt 0:09:22]} 15. Rfe1 {[%emt 0:02:06]} Qc7 {[%emt 0:12:27]} 16. h3 {[%emt 0:00:31]} Bxf3 {[%emt 0:03:01]} 17. Bxf3 {[%emt 0:00:08]} Rxe1+ {[%emt 0:02:49]} 18. Rxe1 {[%emt 0:00:10]} Re8 {[%emt 0:00:06]} 19. Rxe8+ {[%emt 0:01:42]} Nxe8 {[%emt 0:00:05]} 20. Qe3 {[%emt 0:00:24]} Nef6 {[%emt 0:05:48]} 21. Bf4 {[%emt 0:01:40]} Qb6 {[%emt 0:03:00]} 22. Nd1 {[%emt 0:00:35]} Qb4 {[%emt 0:06:57]} 23. b3 {[%emt 0:00:47]} Bf8 {[%emt 0:00:23]} 24. Kh2 {[%emt 0:02:18]} b5 {[%emt 0:00:25]} 25. axb5 {[%emt 0:03:01]} axb5 {[%emt 0:00:04]} 26. Qd3 {[%emt 0:00:21]} bxc4 {[%emt 0:00:18]} 27. bxc4 {[%emt 0:00:06]} Qe1 {[%emt 0:07:12]} 28. Be2 {[%emt 0:02:38]} Qa5 {[%emt 0:01:35]} 29. Nc3 {[%emt 0:00:57]} Qd8 {[%emt 0:01:35]} 30. Nb5 {[%emt 0:01:07]} Ne8 {[%emt 0:00:14]} 31. Qe3 {[%emt 0:01:35]} Qf6 {[%emt 0:02:19]} 32. Bg3 {[%emt 0:01:33]} Ng7 {[%emt 0:01:15]} 33. Qxh6 {[%emt 0:01:49]} Nf5 {[%emt 0:00:40]} 34. Qf4 {[%emt 0:00:53]} Bh6 {[%emt 0:02:11]} 35. Qe4 {[%emt 0:00:32]} Nxg3 {[%emt 0:01:47]} 36. Kxg3 {[%emt 0:00:16]} Ne5 {[%emt 0:01:16]} 37. f4 {[%emt 0:01:00]} Nd7 {[%emt 0:00:22]} 38. h4 {[%emt 0:01:54]} Nb6 {[%emt 0:04:23]} 39. Kf3 {[%emt 0:00:55]} Na4 {[%emt 0:00:53]} 40. g3 {[%emt 0:03:48]} Nc3 {[%emt 0:00:26]} 41. Qe8+ {[%emt 0:00:15]} Bf8 {[%emt 0:00:49]} 42. Nc7 {[%emt 0:02:01]} Qf5 {[%emt 0:02:00]} 43. Qe3 {[%emt 0:00:52]} Bg7 {[%emt 0:00:33]} 44. Ne8 {[%emt 0:01:27]} Nxe2 {[%emt 0:06:52]} 45. Nxg7 {[%emt 0:01:17]} Kxg7 {[%emt 0:00:19]} 46. Qxe2 {[%emt 0:00:08]} Qb1 {[%emt 0:00:46]} 47. Kf2 {[%emt 0:01:52]} Qa1 {[%emt 0:01:01]} 48. Qd3 {[%emt 0:00:50]} Qb2+ {[%emt 0:00:15]} 49. Kf3 {[%emt 0:00:07]} Qa1 {[%emt 0:01:06]} 50. Kg4 {[%emt 0:00:53]} f5+ {[%emt 0:00:49]} 51. Kf3 {[%emt 0:00:14]} Qh1+ {[%emt 0:01:46]} 52. Kf2 {[%emt 0:00:40]} Qh2+ {[%emt 0:00:26]} 53. Ke1 {[%emt 0:00:07]} Qg1+ {[%emt 0:00:05]} 54. Ke2 {[%emt 0:00:29]} Qg2+ {[%emt 0:00:24]} 55. Kd1 {[%emt 0:00:06]} Qg1+ {[%emt 0:01:11]} 56. Kc2 {[%emt 0:00:08]} Qf2+ {[%emt 0:00:08]} 57. Kb3 {[%emt 0:00:10]} Kh6 {[%emt 0:01:26]} 58. Ka4 {[%emt 0:01:51]} Qb2 {[%emt 0:00:48]} 59. Qb3 {[%emt 0:00:22]} Qa1+ {[%emt 0:01:05]} 60. Qa3 {[%emt 0:00:08]} Qb1 {[%emt 0:00:16]} 61. Qb3 {[%emt 0:01:35]} Qa1+ {[%emt 0:00:47]} 62. Qa3 {[%emt 0:01:08]} Qb1 {[%emt 0:00:10]} 63. Qc3 {[%emt 0:00:04]} Kh5 {[%emt 0:00:22]} 64. Ka5 {[%emt 0:01:01]} Kg4 {[%emt 0:00:23]} 65. Ka6 {[%emt 0:00:32]} Qb4 {[%emt 0:03:07]} 66. Qd3 {[%emt 0:00:37]} Qb2 {[%emt 0:00:28]} 67. Ka7 {[%emt 0:01:09]} Kh3 {[%emt 0:00:23]} 68. h5 {[%emt 0:00:49]} gxh5 {[%emt 0:00:47]} 69. Qxf5+ {[%emt 0:00:12]} Kxg3 {[%emt 0:00:08]} 70. Qg5+ {[%emt 0:01:02]} Kf3 {[%emt 0:00:59]} 71. f5 {[%emt 0:00:32]} Qe5 {[%emt 0:01:15]} 72. Qxh5+ {[%emt 0:00:15]} Ke4 {[%emt 0:00:22]} 73. Qg4+ {[%emt 0:00:37]} Kd3 {[%emt 0:00:06]} 74. Kb6 {[%emt 0:00:12]} Qf6 {[%emt 0:00:32]} 75. Kc6 {[%emt 0:00:24]} Kc3 {[%emt 0:01:03]} 76. Qe4 {[%emt 0:00:18]} Qd8 {[%emt 0:00:23]} 77. Qe6 {[%emt 0:00:20]} Kxc4 {[%emt 0:00:11]} 78. f6 {[%emt 0:00:21]} Qa8+ {[%emt 0:00:52]} 79. Kxd6 {[%emt 0:00:10]} Qb8+ {[%emt 0:00:05]} 80. Ke7 {[%emt 0:00:12]} Qc7+ {[%emt 0:00:06]} 81. Kf8 {[%emt 0:00:26]} Kd4 {[%emt 0:00:43]} 82. d6 {[%emt 0:00:10]} Qd8+ {[%emt 0:00:07]} 83. Kg7 {[%emt 0:00:07]} c4 {[%emt 0:00:10]} 84. Qe7 {[%emt 0:00:06]} Qa8 {[%emt 0:00:46]} 85. d7 {[%emt 0:00:07]} Kd5 {[%emt 0:02:24]} 1-0

[Event "1st Welsh Masters 2019"]
[Site "Bridgend"]
[Date "2019.08.28"]
[Round "6.5"]
[White "Waddington, Mike P"]
[Black "Varley, Peter"]
[Result "0-1"]
[ECO "A00"]
[WhiteElo "2023"]
[BlackElo "2171"]
[Annotator "NA"]
[PlyCount "82"]
[EventDate "2019.08.26"]
[EventType "tourn"]
[EventCountry "WLS"]
[SourceTitle "playchess.com"]
[Source "ChessBase"]
[SourceQuality "1"]
[TimeControl "5400+30"]

1. Nc3 {[%emt 0:00:00]} e5 {[%emt 0:00:11]} 2. Nf3 {[%emt 0:00:00]} Nc6 {[%emt 0:00:10]} 3. d4 {[%emt 0:00:00]} exd4 {[%emt 0:00:57]} 4. Nxd4 {[%emt 0:00:00]} Nf6 {[%emt 0:00:42]} 5. Bg5 {[%emt 0:00:13]} Bb4 {[%emt 0:01:28]} 6. Nxc6 {[%emt 0:03:41]} Bxc3+ {[%emt 0:05:49]} 7. bxc3 {[%emt 0:00:08]} bxc6 {[%emt 0:00:19]} 8. Qd4 {[%emt 0:00:57]} O-O {[%emt 0:02:44]} 9. e3 {[%emt 0:06:13]} h6 {[%emt 0:01:08]} 10. Bh4 {[%emt 0:02:39]} d6 {[%emt 0:03:54]} 11. Bd3 {[%emt 0:03:30]} g5 {[%emt 0:02:03]} 12. Bg3 {[%emt 0:01:19]} c5 {[%emt 0:00:12]} 13. Qa4 {[%emt 0:00:39]} Bd7 {[%emt 0:04:07]} 14. Qa5 {[%emt 0:00:35]} Re8 {[%emt 0:02:53]} 15. O-O-O {[%emt 0:16:50]} Ne4 {[%emt 0:06:12]} 16. f3 {[%emt 0:02:12]} Nf6 {[%emt 0:02:45]} 17. e4 {[%emt 0:07:22]} Nh5 {[%emt 0:01:25]} 18. e5 {[%emt 0:01:30]} Nxg3 {[%emt 0:00:46]} 19. hxg3 {[%emt 0:00:10]} Rxe5 {[%emt 0:00:14]} 20. Be4 {[%emt 0:04:50]} c4 {[%emt 0:05:44]} 21. Qa3 {[%emt 0:13:00]} Rb8 {[%emt 0:00:50]} 22. Rxh6 {[%emt 0:01:10]} Reb5 {[%emt 0:00:50]} 23. Kd2 {[%emt 0:14:57]} Rb1 {[%emt 0:00:23]} 24. Rxb1 {[%emt 0:03:38]} Rxb1 {[%emt 0:00:06]} 25. Qxa7 {[%emt 0:00:17]} Rb6 {[%emt 0:03:56]} 26. Qa3 {[%emt 0:07:44]} d5 {[%emt 0:03:21]} 27. Bh7+ {[%emt 0:02:03]} Kg7 {[%emt 0:00:50]} 28. Rh1 {[%emt 0:00:33]} Rh6 {[%emt 0:00:30]} 29. Re1 {[%emt 0:01:51]} Kxh7 {[%emt 0:00:58]} 30. Re7 {[%emt 0:00:37]} Be6 {[%emt 0:01:31]} 31. Qc5 {[%emt 0:00:17]} Qd6 {[%emt 0:00:37]} 32. Qxc7 {[%emt 0:01:18]} Qxc7 {[%emt 0:00:08]} 33. Rxc7 {[%emt 0:00:05]} Rh2 {[%emt 0:00:14]} 34. a4 {[%emt 0:01:21]} Rxg2+ {[%emt 0:00:08]} 35. Kc1 {[%emt 0:00:16]} Kg6 {[%emt 0:02:06]} 36. a5 {[%emt 0:00:14]} Rxg3 {[%emt 0:01:53]} 37. a6 {[%emt 0:00:20]} Rh3 {[%emt 0:00:14]} 38. a7 {[%emt 0:00:13]} Rh8 {[%emt 0:00:08]} 39. Kd2 {[%emt 0:01:01]} Kf5 {[%emt 0:00:57]} 40. Ke3 {[%emt 0:00:27]} Ke5 {[%emt 0:00:14]} 41. Rb7 {[%emt 0:00:17]} Ra8 {[%emt 0:00:09]} 0-1

[Event "1st Welsh Masters 2019"]
[Site "Bridgend"]
[Date "2019.08.29"]
[Round "7.3"]
[White "Kett, Tim"]
[Black "Taylor, Adam C"]
[Result "1/2-1/2"]
[ECO "B15"]
[WhiteElo "2245"]
[BlackElo "2402"]
[Annotator "NA"]
[PlyCount "127"]
[EventDate "2019.08.26"]
[EventType "tourn"]
[EventCountry "WLS"]
[SourceTitle "playchess.com"]
[Source "ChessBase"]
[SourceQuality "1"]
[TimeControl "5400+30"]

1. e4 {[%emt 0:00:00]} c6 {[%emt 0:00:05]} 2. d4 {[%emt 0:04:26]} d5 {[%emt 0:00:04]} 3. Nc3 {[%emt 0:00:58]} g6 {[%emt 0:00:05]} 4. Be3 {[%emt 0:03:40]} dxe4 {[%emt 0:08:32]} 5. Nxe4 {[%emt 0:00:20]} Qb6 {[%emt 0:00:54]} 6. Nf3 {[%emt 0:04:31]} Bg7 {[%emt 0:04:19]} 7. Bc4 {[%emt 0:04:43]} Bf5 {[%emt 0:11:29]} 8. Ng3 {[%emt 0:04:26]} Qxb2 {[%emt 0:11:45]} (8... Qb5 $2 {[%emt 1:08:32][%mdl 8192]}) (8... Qb4+ $16 9. Nd2 Nf6) 9. Nxf5 {[%emt 0:10:42]} Qc3+ {[%emt 0:00:24]} 10. Bd2 {[%emt 0:00:38]} Qxc4 {[%emt 0:00:03]} 11. Nxg7+ {[%emt 0:00:11]} Kf8 {[%emt 0:00:02]} 12. Nh5 {[%emt 0:02:19]} gxh5 {[%emt 0:00:18]} 13. Ne5 {[%emt 0:04:42]} Qd5 {[%emt 0:06:49]} 14. O-O {[%emt 0:01:46]} f6 {[%emt 0:00:49]} 15. c4 {[%emt 0:11:49]} Qe6 {[%emt 0:03:39]} 16. Qf3 {[%emt 0:01:19]} Nd7 {[%emt 0:02:15]} 17. Rab1 {[%emt 0:01:10]} Nxe5 {[%emt 0:16:47]} 18. dxe5 {[%emt 0:00:13]} Qg4 {[%emt 0:00:09]} 19. Qd3 {[%emt 0:03:59]} b6 {[%emt 0:03:03]} 20. Rfe1 {[%emt 0:00:59]} Qg6 {[%emt 0:04:56]} 21. Qd7 {[%emt 0:03:08]} f5 $18 {[%emt 0:00:07]} 22. Rb3 {[%emt 0:01:48]} e6 {[%emt 0:08:40]} 23. Ree3 {[%emt 0:08:22]} Qe8 {[%emt 0:02:30]} 24. Qd6+ {[%emt 0:07:36]} Kf7 {[%emt 0:00:40]} 25. Rbd3 {[%emt 0:00:13]} Ne7 {[%emt 0:00:56]} 26. Qa3 {[%emt 0:06:58]} Rg8 {[%emt 0:00:56]} 27. Rh3 {[%emt 0:00:59]} Rg7 {[%emt 0:05:58]} 28. Rxh5 {[%emt 0:02:00]} Kg8 {[%emt 0:00:11]} 29. Rg5 {[%emt 0:02:47]} Ng6 {[%emt 0:00:03]} 30. Qd6 {[%emt 0:01:23]} c5 {[%emt 0:01:09]} 31. h4 {[%emt 0:01:51]} Qe7 {[%emt 0:06:22]} 32. Qxe7 {[%emt 0:01:56]} Nxe7 {[%emt 0:00:07]} 33. Rd7 {[%emt 0:01:00]} Rxg5 {[%emt 0:01:37]} 34. Bxg5 {[%emt 0:00:08]} Nc6 {[%emt 0:00:23]} 35. Bf6 {[%emt 0:00:12]} a6 {[%emt 0:00:47]} 36. Rg7+ {[%emt 0:00:10]} Kf8 {[%emt 0:00:03]} 37. Rxh7 {[%emt 0:00:08]} Ra7 {[%emt 0:00:03]} 38. Rh8+ {[%emt 0:00:45]} Kf7 {[%emt 0:00:00]} 39. h5 {[%emt 0:00:11]} b5 {[%emt 0:00:02]} 40. cxb5 {[%emt 0:02:07]} axb5 {[%emt 0:00:01]} 41. Rc8 {[%emt 0:00:10]} Nd4 {[%emt 0:01:45]} 42. Rxc5 {[%emt 0:01:52]} Ne2+ {[%emt 0:00:35]} 43. Kh2 {[%emt 0:00:05]} Nf4 {[%emt 0:00:01]} 44. h6 {[%emt 0:00:21]} Kg6 {[%emt 0:00:01]} 45. g3 {[%emt 0:01:31]} Nh5 {[%emt 0:01:14]} 46. Rc6 {[%emt 0:00:46]} Rxa2 {[%emt 0:00:05]} 47. Kg2 {[%emt 0:00:26]} Nxf6 {[%emt 0:00:37]} 48. Rxe6 {[%emt 0:00:12]} Kxh6 {[%emt 0:00:05]} 49. Rxf6+ {[%emt 0:00:23]} Kg5 {[%emt 0:00:06]} 50. Rb6 {[%emt 0:00:13]} Rb2 {[%emt 0:00:16]} 51. Kf3 {[%emt 0:00:33]} b4 {[%emt 0:01:05]} 52. Ke3 {[%emt 0:01:04]} b3 {[%emt 0:00:04]} 53. f4+ {[%emt 0:00:18]} Kg4 {[%emt 0:00:00]} 54. e6 {[%emt 0:01:33]} Rb1 {[%emt 0:00:57]} 55. Kd2 {[%emt 0:00:29]} Rb2+ {[%emt 0:00:26]} 56. Kd3 {[%emt 0:00:39]} Rb1 {[%emt 0:00:57]} 57. Kd2 {[%emt 0:00:42]} Rb2+ {[%emt 0:00:06]} 58. Kc3 {[%emt 0:00:21]} Re2 {[%emt 0:00:02]} 59. Kd3 {[%emt 0:00:35]} Re4 {[%emt 0:00:51]} 60. Kc3 {[%emt 0:00:38]} Re1 {[%emt 0:02:55]} 61. Kd4 {[%emt 0:00:24]} b2 {[%emt 0:00:24]} 62. Rxb2 {[%emt 0:00:09]} Rxe6 {[%emt 0:00:04]} 63. Rb3 {[%emt 0:00:23]} Re4+ {[%emt 0:00:10]} 64. Kd5 {[%emt 0:00:07]} 1/2-1/2